[Event "Titled Tuesday Blitz July 18 Early 2023"]
[White "Ai, Evan"]
[Black "Frolyanov, Dmitry"]
[WhiteFideId "2094770"]
[BlackFideId "4151976"]
[WhiteElo "2445"]
[BlackElo "2601"]
[Result "0-1"]
[Round "7"]
[TimeControl "180+2"]
[Date "2023.07.18"]
[WhiteClock "0:00:06"]
[BlackClock "0:01:01"]
[Board "92"]

1. e4 {[%clk 0:03:00]}  e5 {[%clk 0:02:58]} 2. Nf3 {[%clk 0:03:00]}  Nf6 {[%clk 0:02:58]} 3. Nxe5 {[%clk 0:02:59]}  d6 {[%clk 0:02:57]} 4. Nf3 {[%clk 0:02:59]}  Nxe4 {[%clk 0:02:58]} 5. Nc3 {[%clk 0:03:00]}  Nxc3 {[%clk 0:02:58]} 6. dxc3 {[%clk 0:03:01]}  Be7 {[%clk 0:02:58]} 7. Be3 {[%clk 0:03:01]}  O-O {[%clk 0:02:59]} 8. Qd2 {[%clk 0:03:02]}  Nd7 {[%clk 0:02:57]} 9. O-O-O {[%clk 0:03:03]}  Nf6 {[%clk 0:02:57]} 10. h3 {[%clk 0:02:59]}  c5 {[%clk 0:02:57]} 11. g4 {[%clk 0:02:53]}  Qa5 {[%clk 0:02:56]} 12. Kb1 {[%clk 0:02:53]}  Be6 {[%clk 0:02:50]} 13. c4 {[%clk 0:02:39]}  Qb6 {[%clk 0:02:45]} 14. Bd3 {[%clk 0:02:35]}  d5 {[%clk 0:02:44]} 15. cxd5 {[%clk 0:02:21]}  Nxd5 {[%clk 0:02:45]} 16. Ne5 {[%clk 0:02:13]}  Bf6 {[%clk 0:02:35]} 17. Nc4 {[%clk 0:02:12]}  Qa6 {[%clk 0:02:24]} 18. Na3 {[%clk 0:02:02]}  Qa4 {[%clk 0:02:04]} 19. Bb5 {[%clk 0:01:55]}  Qb4 {[%clk 0:01:55]} 20. Qxb4 {[%clk 0:01:32]}  cxb4 {[%clk 0:01:56]} 21. Nc4 {[%clk 0:01:27]}  a6 {[%clk 0:01:56]} 22. Bd7 {[%clk 0:01:25]}  Bxd7 {[%clk 0:01:56]} 23. Rxd5 {[%clk 0:01:25]}  Bc6 {[%clk 0:01:56]} 24. Rhd1 {[%clk 0:01:24]}  Bxd5 {[%clk 0:01:57]} 25. Rxd5 {[%clk 0:01:25]}  Rad8 {[%clk 0:01:55]} 26. Nd6 {[%clk 0:01:21]}  Be7 {[%clk 0:01:51]} 27. Nf5 {[%clk 0:01:19]}  Bf6 {[%clk 0:01:40]} 28. Rxd8 {[%clk 0:01:13]}  Rxd8 {[%clk 0:01:39]} 29. Kc1 {[%clk 0:01:11]}  g6 {[%clk 0:01:38]} 30. Ng3 {[%clk 0:01:07]}  Bd4 {[%clk 0:01:33]} 31. Bd2 {[%clk 0:00:58]}  Bxf2 {[%clk 0:01:31]} 32. Ne4 {[%clk 0:00:58]}  Bd4 {[%clk 0:01:27]} 33. b3 {[%clk 0:00:51]}  a5 {[%clk 0:01:25]} 34. Bg5 {[%clk 0:00:47]}  Re8 {[%clk 0:01:18]} 35. Nd6 {[%clk 0:00:41]}  Re2 {[%clk 0:01:16]} 36. Nb5 {[%clk 0:00:15]}  Bc3 {[%clk 0:01:11]} 37. Nxc3 {[%clk 0:00:12]}  bxc3 {[%clk 0:01:12]} 38. Kd1 {[%clk 0:00:12]}  Rh2 {[%clk 0:01:12]} 39. Bd8 {[%clk 0:00:06]}  Rd2+ {[%clk 0:01:01]} 0-1


[Site "https://www.chess.com"]

[Event "Titled Tuesday Blitz July 18 Early 2023"]
[White "Herman, Daniel"]
[Black "Fiorito, Francisco"]
[WhiteFideId "30935008"]
[BlackFideId "180165"]
[WhiteElo "2439"]
[BlackElo "2597"]
[Result "0-1"]
[Round "7"]
[TimeControl "180+2"]
[Date "2023.07.18"]
[WhiteClock "0:00:00"]
[BlackClock "0:00:32"]
[Board "93"]

1. Nf3 {[%clk 0:03:00]}  d5 {[%clk 0:02:59]} 2. e3 {[%clk 0:03:01]}  Nf6 {[%clk 0:02:51]} 3. c4 {[%clk 0:03:01]}  c6 {[%clk 0:02:48]} 4. Nc3 {[%clk 0:03:01]}  g6 {[%clk 0:02:47]} 5. b3 {[%clk 0:02:55]}  Bg7 {[%clk 0:02:47]} 6. Bb2 {[%clk 0:02:55]}  O-O {[%clk 0:02:47]} 7. Be2 {[%clk 0:02:50]}  Bf5 {[%clk 0:02:47]} 8. d4 {[%clk 0:02:44]}  Nbd7 {[%clk 0:02:43]} 9. O-O {[%clk 0:02:40]}  Re8 {[%clk 0:02:41]} 10. cxd5 {[%clk 0:02:29]}  cxd5 {[%clk 0:02:39]} 11. Ne5 {[%clk 0:02:30]}  Rc8 {[%clk 0:02:21]} 12. Bf3 {[%clk 0:02:24]}  e6 {[%clk 0:01:54]} 13. Nb5 {[%clk 0:02:22]}  Nb8 {[%clk 0:01:03]} 14. Nxa7 {[%clk 0:02:19]}  Rc2 {[%clk 0:01:02]} 15. Ba3 {[%clk 0:01:49]}  Qa5 {[%clk 0:01:00]} 16. Bc5 {[%clk 0:01:49]}  Rxc5 {[%clk 0:00:56]} 17. dxc5 {[%clk 0:01:08]}  Qxa7 {[%clk 0:00:56]} 18. Rc1 {[%clk 0:01:02]}  Nc6 {[%clk 0:00:54]} 19. Nxc6 {[%clk 0:00:59]}  bxc6 {[%clk 0:00:55]} 20. a4 {[%clk 0:00:59]}  Rb8 {[%clk 0:00:53]} 21. Be2 {[%clk 0:00:55]}  Ne4 {[%clk 0:00:51]} 22. Bd3 {[%clk 0:00:52]}  Nxc5 {[%clk 0:00:49]} 23. Bxf5 {[%clk 0:00:51]}  gxf5 {[%clk 0:00:50]} 24. Qc2 {[%clk 0:00:43]}  Nxb3 {[%clk 0:00:46]} 25. Rb1 {[%clk 0:00:42]}  Qxa4 {[%clk 0:00:45]} 26. g3 {[%clk 0:00:16]}  c5 {[%clk 0:00:45]} 27. Rfd1 {[%clk 0:00:14]}  c4 {[%clk 0:00:45]} 28. Kg2 {[%clk 0:00:12]}  Qa8 {[%clk 0:00:42]} 29. Kg1 {[%clk 0:00:11]}  h6 {[%clk 0:00:39]} 30. Re1 {[%clk 0:00:08]}  Rb7 {[%clk 0:00:40]} 31. Red1 {[%clk 0:00:05]}  Ra7 {[%clk 0:00:40]} 32. Qe2 {[%clk 0:00:04]}  Ra2 {[%clk 0:00:39]} 33. Qh5 {[%clk 0:00:04]}  Qa3 {[%clk 0:00:32]} 34. Qf3 {[%clk 0:00:02]}  Rb2 {[%clk 0:00:31]} 35. Rxb2 {[%clk 0:00:02]}  Qxb2 {[%clk 0:00:32]} 36. Qh5 {[%clk 0:00:00]}  c3 {[%clk 0:00:32]} 0-1


[Site "https://www.chess.com"]

[Event "Titled Tuesday Blitz July 18 Early 2023"]
[White "Devaev, Alexander"]
[Black "Altman, Joshua"]
[WhiteFideId "4169395"]
[BlackFideId "426210"]
[WhiteElo "2439"]
[BlackElo "2591"]
[Result "1-0"]
[Round "7"]
[TimeControl "180+2"]
[Date "2023.07.18"]
[WhiteClock "0:00:53"]
[BlackClock "0:00:04"]
[Board "95"]

1. d4 {[%clk 0:03:00]}  c5 {[%clk 0:02:58]} 2. d5 {[%clk 0:03:00]}  Nf6 {[%clk 0:02:57]} 3. c4 {[%clk 0:03:00]}  e6 {[%clk 0:02:55]} 4. Nc3 {[%clk 0:03:00]}  exd5 {[%clk 0:02:55]} 5. cxd5 {[%clk 0:03:00]}  d6 {[%clk 0:02:54]} 6. e4 {[%clk 0:03:01]}  g6 {[%clk 0:02:54]} 7. Nf3 {[%clk 0:03:01]}  a6 {[%clk 0:02:54]} 8. a4 {[%clk 0:02:59]}  Bg7 {[%clk 0:02:54]} 9. h3 {[%clk 0:02:59]}  O-O {[%clk 0:02:54]} 10. Bd3 {[%clk 0:03:00]}  Re8 {[%clk 0:02:53]} 11. O-O {[%clk 0:03:00]}  Nbd7 {[%clk 0:02:47]} 12. Bf4 {[%clk 0:03:01]}  Qc7 {[%clk 0:02:39]} 13. Re1 {[%clk 0:03:01]}  Nh5 {[%clk 0:02:38]} 14. Bh2 {[%clk 0:03:01]}  Ne5 {[%clk 0:02:36]} 15. Be2 {[%clk 0:03:02]}  Nxf3+ {[%clk 0:02:13]} 16. Bxf3 {[%clk 0:03:02]}  Nf6 {[%clk 0:02:13]} 17. e5 {[%clk 0:02:58]}  dxe5 {[%clk 0:02:13]} 18. d6 {[%clk 0:02:58]}  Qb6 {[%clk 0:02:02]} 19. Bxe5 {[%clk 0:02:59]}  Be6 {[%clk 0:02:00]} 20. Qd2 {[%clk 0:02:50]}  Rad8 {[%clk 0:01:59]} 21. a5 {[%clk 0:02:28]}  Qa7 {[%clk 0:01:42]} 22. Ra4 {[%clk 0:02:21]}  b5 {[%clk 0:01:37]} 23. axb6 {[%clk 0:02:18]}  Qxb6 {[%clk 0:01:37]} 24. Rh4 {[%clk 0:02:19]}  h5 {[%clk 0:01:32]} 25. Qf4 {[%clk 0:02:04]}  Bf5 {[%clk 0:01:18]} 26. g4 {[%clk 0:01:49]}  Nd7 {[%clk 0:00:23]} 27. Nd5 {[%clk 0:01:26]}  Qb3 {[%clk 0:00:16]} 28. Ne7+ {[%clk 0:01:22]}  Kh7 {[%clk 0:00:12]} 29. Rxh5+ {[%clk 0:00:59]}  gxh5 {[%clk 0:00:04]} 30. Qxf5+ {[%clk 0:00:58]}  Kh8 {[%clk 0:00:04]} 31. Qxh5# {[%clk 0:00:53]} 1-0


[Site "https://www.chess.com"]

[Event "Titled Tuesday Blitz July 18 Early 2023"]
[White "Parpiev, Isaak"]
[Black "Mazurkiewicz, Michal"]
[WhiteFideId "34281576"]
[BlackFideId "1124943"]
[WhiteElo "2579"]
[BlackElo "2421"]
[Result "1-0"]
[Round "7"]
[TimeControl "180+2"]
[Date "2023.07.18"]
[WhiteClock "0:02:15"]
[BlackClock "0:02:10"]
[Board "97"]

1. d4 {[%clk 0:03:00]}  Nf6 {[%clk 0:03:00]} 2. c4 {[%clk 0:03:01]}  e5 {[%clk 0:03:00]} 3. dxe5 {[%clk 0:03:00]}  Ng4 {[%clk 0:03:00]} 4. Nf3 {[%clk 0:03:01]}  Bc5 {[%clk 0:03:01]} 5. e3 {[%clk 0:02:57]}  Nc6 {[%clk 0:03:01]} 6. Nc3 {[%clk 0:02:56]}  O-O {[%clk 0:03:01]} 7. Be2 {[%clk 0:02:55]}  Re8 {[%clk 0:03:01]} 8. O-O {[%clk 0:02:55]}  a5 {[%clk 0:03:01]} 9. a3 {[%clk 0:02:47]}  Ncxe5 {[%clk 0:03:01]} 10. Nxe5 {[%clk 0:02:46]}  Nxe5 {[%clk 0:03:02]} 11. Ne4 {[%clk 0:02:36]}  Bf8 {[%clk 0:03:02]} 12. Ng3 {[%clk 0:02:34]}  Ra6 {[%clk 0:03:00]} 13. Qc2 {[%clk 0:02:31]}  Rh6 {[%clk 0:03:00]} 14. e4 {[%clk 0:02:29]}  Qh4 {[%clk 0:02:56]} 15. Bxh6 {[%clk 0:02:28]}  Qxh6 {[%clk 0:02:54]} 16. c5 {[%clk 0:02:28]}  d6 {[%clk 0:02:51]} 17. cxd6 {[%clk 0:02:27]}  Bxd6 {[%clk 0:02:52]} 18. f4 {[%clk 0:02:26]}  Nc6 {[%clk 0:02:15]} 19. e5 {[%clk 0:02:25]}  Nd4 {[%clk 0:02:15]} 20. Qc4 {[%clk 0:02:15]}  Be6 {[%clk 0:02:10]} 21. Qxd4 {[%clk 0:02:15]} 1-0


[Site "https://www.chess.com"]

[Event "Titled Tuesday Blitz July 18 Early 2023"]
[White "Todorovic, Bojan"]
[Black "Fonseca Manrique, Enrique"]
[WhiteFideId "917087"]
[BlackFideId "5114330"]
[WhiteElo "2433"]
[BlackElo "2577"]
[Result "0-1"]
[Round "7"]
[TimeControl "180+2"]
[Date "2023.07.18"]
[WhiteClock "0:00:00"]
[BlackClock "0:00:19"]
[Board "98"]

1. d4 {[%clk 0:02:59]}  Nf6 {[%clk 0:02:58]} 2. c4 {[%clk 0:02:59]}  c5 {[%clk 0:02:58]} 3. d5 {[%clk 0:02:59]}  b5 {[%clk 0:02:58]} 4. cxb5 {[%clk 0:02:59]}  a6 {[%clk 0:02:59]} 5. e3 {[%clk 0:02:59]}  e6 {[%clk 0:02:57]} 6. Nc3 {[%clk 0:02:53]}  Qa5 {[%clk 0:02:56]} 7. Bd2 {[%clk 0:02:51]}  axb5 {[%clk 0:02:56]} 8. Bxb5 {[%clk 0:02:40]}  Bb7 {[%clk 0:02:42]} 9. Nf3 {[%clk 0:02:39]}  Qb6 {[%clk 0:02:40]} 10. dxe6 {[%clk 0:02:37]}  fxe6 {[%clk 0:02:40]} 11. O-O {[%clk 0:02:34]}  Be7 {[%clk 0:02:39]} 12. a4 {[%clk 0:02:26]}  O-O {[%clk 0:02:32]} 13. Ne5 {[%clk 0:02:05]}  Qc7 {[%clk 0:02:25]} 14. f4 {[%clk 0:01:26]}  d6 {[%clk 0:02:14]} 15. Nf3 {[%clk 0:01:16]}  Nc6 {[%clk 0:02:01]} 16. Ng5 {[%clk 0:01:13]}  Qc8 {[%clk 0:01:58]} 17. Qb3 {[%clk 0:01:11]}  d5 {[%clk 0:01:53]} 18. e4 {[%clk 0:01:09]}  Nd4 {[%clk 0:01:44]} 19. Qd1 {[%clk 0:01:09]}  h6 {[%clk 0:01:41]} 20. e5 {[%clk 0:01:07]}  hxg5 {[%clk 0:01:39]} 21. exf6 {[%clk 0:01:07]}  Rxf6 {[%clk 0:01:28]} 22. fxg5 {[%clk 0:01:06]}  Rxf1+ {[%clk 0:01:28]} 23. Qxf1 {[%clk 0:01:00]}  c4 {[%clk 0:01:23]} 24. Re1 {[%clk 0:00:54]}  Bc5 {[%clk 0:01:06]} 25. Kh1 {[%clk 0:00:53]}  Nf5 {[%clk 0:00:56]} 26. Bf4 {[%clk 0:00:43]}  Qf8 {[%clk 0:00:49]} 27. Be5 {[%clk 0:00:39]}  Qf7 {[%clk 0:00:45]} 28. Qf4 {[%clk 0:00:37]}  Rf8 {[%clk 0:00:43]} 29. Rf1 {[%clk 0:00:33]}  d4 {[%clk 0:00:37]} 30. Ne4 {[%clk 0:00:25]}  Bxe4 {[%clk 0:00:30]} 31. Qxe4 {[%clk 0:00:25]}  Ng3+ {[%clk 0:00:29]} 32. hxg3 {[%clk 0:00:26]}  Qxf1+ {[%clk 0:00:29]} 33. Kh2 {[%clk 0:00:26]}  Qf5 {[%clk 0:00:25]} 34. Qxf5 {[%clk 0:00:15]}  Rxf5 {[%clk 0:00:26]} 35. Bf4 {[%clk 0:00:15]}  c3 {[%clk 0:00:26]} 36. bxc3 {[%clk 0:00:14]}  dxc3 {[%clk 0:00:27]} 37. Bd3 {[%clk 0:00:13]}  Rd5 {[%clk 0:00:26]} 38. Bc4 {[%clk 0:00:12]}  Kf7 {[%clk 0:00:23]} 39. a5 {[%clk 0:00:06]}  Rd4 {[%clk 0:00:22]} 40. Bb3 {[%clk 0:00:03]}  Rb4 {[%clk 0:00:21]} 41. Bc2 {[%clk 0:00:03]}  Rb2 {[%clk 0:00:20]} 42. g6+ {[%clk 0:00:00]}  Kf6 {[%clk 0:00:19]} 0-1


[Site "https://www.chess.com"]

[Event "Titled Tuesday Blitz July 18 Early 2023"]
[White "Harriott, Tyrell"]
[Black "Bodnaruk, Anastasia"]
[WhiteFideId "2086484"]
[BlackFideId "4181751"]
[WhiteElo "2420"]
[BlackElo "2577"]
[Result "0-1"]
[Round "7"]
[TimeControl "180+2"]
[Date "2023.07.18"]
[WhiteClock "0:00:08"]
[BlackClock "0:00:13"]
[Board "99"]

1. d4 {[%clk 0:03:00]}  Nf6 {[%clk 0:02:59]} 2. e3 {[%clk 0:03:01]}  g6 {[%clk 0:02:58]} 3. Bd3 {[%clk 0:03:01]}  Bg7 {[%clk 0:02:58]} 4. f4 {[%clk 0:03:01]}  d5 {[%clk 0:02:53]} 5. Nf3 {[%clk 0:03:01]}  c5 {[%clk 0:02:53]} 6. c3 {[%clk 0:03:01]}  b6 {[%clk 0:02:40]} 7. O-O {[%clk 0:03:00]}  O-O {[%clk 0:02:39]} 8. Nbd2 {[%clk 0:02:59]}  Nc6 {[%clk 0:02:39]} 9. Qe1 {[%clk 0:02:54]}  Bb7 {[%clk 0:02:23]} 10. f5 {[%clk 0:02:54]}  Qd6 {[%clk 0:02:10]} 11. fxg6 {[%clk 0:02:40]}  fxg6 {[%clk 0:02:04]} 12. Qh4 {[%clk 0:02:24]}  e5 {[%clk 0:02:00]} 13. e4 {[%clk 0:02:24]}  cxd4 {[%clk 0:01:55]} 14. exd5 {[%clk 0:02:24]}  Nxd5 {[%clk 0:01:45]} 15. Ne4 {[%clk 0:02:20]}  Qd7 {[%clk 0:01:35]} 16. Bh6 {[%clk 0:02:10]}  Nf4 {[%clk 0:01:27]} 17. Bc4+ {[%clk 0:02:04]}  Kh8 {[%clk 0:01:27]} 18. Nfg5 {[%clk 0:01:54]}  Bxh6 {[%clk 0:01:22]} 19. Qxh6 {[%clk 0:01:52]}  Na5 {[%clk 0:01:11]} 20. Bb5 {[%clk 0:01:42]}  Bc6 {[%clk 0:01:04]} 21. Bxc6 {[%clk 0:01:33]}  Nxc6 {[%clk 0:01:04]} 22. g3 {[%clk 0:01:24]}  Ne2+ {[%clk 0:00:52]} 23. Kg2 {[%clk 0:01:18]}  Rf5 {[%clk 0:00:27]} 24. Rae1 {[%clk 0:00:51]}  d3 {[%clk 0:00:26]} 25. Nf6 {[%clk 0:00:28]}  Qg7 {[%clk 0:00:23]} 26. Qxg7+ {[%clk 0:00:25]}  Kxg7 {[%clk 0:00:23]} 27. Nfxh7 {[%clk 0:00:17]}  Re8 {[%clk 0:00:14]} 28. g4 {[%clk 0:00:14]}  Rxf1 {[%clk 0:00:12]} 29. Kxf1 {[%clk 0:00:13]}  Nf4 {[%clk 0:00:12]} 30. Re3 {[%clk 0:00:13]}  d2 {[%clk 0:00:12]} 31. Re1 {[%clk 0:00:09]}  dxe1=Q+ {[%clk 0:00:11]} 32. Kxe1 {[%clk 0:00:09]}  e4 {[%clk 0:00:12]} 33. Kf2 {[%clk 0:00:09]}  e3+ {[%clk 0:00:12]} 34. Ke1 {[%clk 0:00:09]}  e2 {[%clk 0:00:13]} 35. h4 {[%clk 0:00:09]}  Nd3+ {[%clk 0:00:13]} 36. Kd2 {[%clk 0:00:08]}  e1=Q+ {[%clk 0:00:13]} 37. Kxd3 {[%clk 0:00:08]}  Qe2# {[%clk 0:00:13]} 0-1


[Site "https://www.chess.com"]

[Event "Titled Tuesday Blitz July 18 Early 2023"]
[White "luksona14"]
[Black "Palencia Morales, Wilson Guillermo"]
[BlackFideId "4401859"]
[WhiteElo "2415"]
[BlackElo "2560"]
[Result "1-0"]
[Round "7"]
[TimeControl "180+2"]
[Date "2023.07.18"]
[WhiteClock "0:01:23"]
[BlackClock "0:00:00"]
[Board "102"]

1. e4 {[%clk 0:02:57]}  c5 {[%clk 0:02:50]} 2. Nc3 {[%clk 0:02:55]}  Nc6 {[%clk 0:02:49]} 3. Bb5 {[%clk 0:02:55]}  e5 {[%clk 0:02:48]} 4. Bc4 {[%clk 0:02:50]}  Nf6 {[%clk 0:02:46]} 5. Nge2 {[%clk 0:02:51]}  Be7 {[%clk 0:02:45]} 6. O-O {[%clk 0:02:51]}  O-O {[%clk 0:02:45]} 7. d3 {[%clk 0:02:51]}  d6 {[%clk 0:02:46]} 8. f4 {[%clk 0:02:51]}  Bg4 {[%clk 0:02:41]} 9. f5 {[%clk 0:02:44]}  Nd4 {[%clk 0:02:40]} 10. h3 {[%clk 0:02:41]}  Bxe2 {[%clk 0:02:40]} 11. Nxe2 {[%clk 0:02:41]}  d5 {[%clk 0:02:27]} 12. exd5 {[%clk 0:02:38]}  Nxd5 {[%clk 0:02:27]} 13. Nxd4 {[%clk 0:02:33]}  cxd4 {[%clk 0:02:25]} 14. Qe2 {[%clk 0:02:32]}  Bf6 {[%clk 0:02:18]} 15. Qe4 {[%clk 0:02:20]}  Nb4 {[%clk 0:02:15]} 16. Bb3 {[%clk 0:02:13]}  a5 {[%clk 0:02:13]} 17. Bd2 {[%clk 0:02:11]}  Bg5 {[%clk 0:01:58]} 18. Bxb4 {[%clk 0:02:11]}  axb4 {[%clk 0:01:57]} 19. g3 {[%clk 0:02:10]}  Be3+ {[%clk 0:01:51]} 20. Kg2 {[%clk 0:02:10]}  Ra6 {[%clk 0:01:43]} 21. Rh1 {[%clk 0:02:08]}  Rh6 {[%clk 0:01:40]} 22. Raf1 {[%clk 0:02:08]}  b6 {[%clk 0:01:32]} 23. Qxe5 {[%clk 0:01:55]}  Re8 {[%clk 0:01:31]} 24. Qd5 {[%clk 0:01:54]}  Qc7 {[%clk 0:01:18]} 25. Re1 {[%clk 0:01:49]}  Rd6 {[%clk 0:00:57]} 26. Qf3 {[%clk 0:01:40]}  Kh8 {[%clk 0:00:52]} 27. h4 {[%clk 0:01:30]}  Rf6 {[%clk 0:00:50]} 28. g4 {[%clk 0:01:29]}  Re5 {[%clk 0:00:00]} 29. Qa8+ {[%clk 0:01:23]} 1-0


[Site "https://www.chess.com"]

[Event "Titled Tuesday Blitz July 18 Early 2023"]
[White "Tikhonov, Viacheslav"]
[Black "Gutkin, Ilya"]
[WhiteFideId "44196407"]
[BlackFideId "16203470"]
[WhiteElo "2532"]
[BlackElo "2361"]
[Result "1-0"]
[Round "7"]
[TimeControl "180+2"]
[Date "2023.07.18"]
[WhiteClock "0:00:49"]
[BlackClock "0:00:00"]
[Board "109"]

1. e4 {[%clk 0:03:00]}  e5 {[%clk 0:03:00]} 2. Nf3 {[%clk 0:02:58]}  Nc6 {[%clk 0:03:01]} 3. Bc4 {[%clk 0:02:57]}  Nf6 {[%clk 0:03:01]} 4. d3 {[%clk 0:02:47]}  Bc5 {[%clk 0:02:58]} 5. c3 {[%clk 0:02:45]}  d5 {[%clk 0:02:42]} 6. exd5 {[%clk 0:02:43]}  Nxd5 {[%clk 0:02:43]} 7. O-O {[%clk 0:02:39]}  O-O {[%clk 0:02:42]} 8. Bg5 {[%clk 0:02:29]}  f6 {[%clk 0:02:37]} 9. Bh4 {[%clk 0:02:28]}  Be6 {[%clk 0:02:35]} 10. d4 {[%clk 0:02:27]}  exd4 {[%clk 0:02:33]} 11. cxd4 {[%clk 0:02:27]}  Bb6 {[%clk 0:02:29]} 12. Re1 {[%clk 0:02:28]}  Bf7 {[%clk 0:02:29]} 13. Bg3 {[%clk 0:02:27]}  Qd7 {[%clk 0:02:23]} 14. Nc3 {[%clk 0:02:23]}  Rfe8 {[%clk 0:02:20]} 15. Qd2 {[%clk 0:02:14]}  Na5 {[%clk 0:02:00]} 16. Bd3 {[%clk 0:02:10]}  Nxc3 {[%clk 0:01:49]} 17. bxc3 {[%clk 0:02:07]}  Bd5 {[%clk 0:01:44]} 18. Qf4 {[%clk 0:01:58]}  Rxe1+ {[%clk 0:01:38]} 19. Rxe1 {[%clk 0:01:54]}  Re8 {[%clk 0:01:38]} 20. Rxe8+ {[%clk 0:01:49]}  Qxe8 {[%clk 0:01:39]} 21. Qh4 {[%clk 0:01:49]}  h6 {[%clk 0:01:24]} 22. Qg4 {[%clk 0:01:42]}  Bxa2 {[%clk 0:00:58]} 23. Qf5 {[%clk 0:01:29]}  Bf7 {[%clk 0:00:43]} 24. Qh7+ {[%clk 0:01:23]}  Kf8 {[%clk 0:00:43]} 25. Qh8+ {[%clk 0:01:23]}  Bg8 {[%clk 0:00:33]} 26. Bh7 {[%clk 0:01:15]}  Kf7 {[%clk 0:00:33]} 27. Bb1 {[%clk 0:01:06]}  Qe6 {[%clk 0:00:11]} 28. h4 {[%clk 0:01:02]}  Kf8 {[%clk 0:00:06]} 29. Bf4 {[%clk 0:00:55]}  Nc4 {[%clk 0:00:05]} 30. Ba2 {[%clk 0:00:54]}  Ba5 {[%clk 0:00:03]} 31. h5 {[%clk 0:00:50]}  b5 {[%clk 0:00:03]} 32. Nh4 {[%clk 0:00:50]}  Ke7 {[%clk 0:00:02]} 33. Ng6+ {[%clk 0:00:49]}  Kd7 {[%clk 0:00:00]} 34. Qxg7+ {[%clk 0:00:49]} 1-0


[Site "https://www.chess.com"]

[Event "Titled Tuesday Blitz July 18 Early 2023"]
[White "Okike, David"]
[Black "Girya, Olga"]
[WhiteFideId "8500134"]
[BlackFideId "4195752"]
[WhiteElo "2341"]
[BlackElo "2530"]
[Result "1-0"]
[Round "7"]
[TimeControl "180+2"]
[Date "2023.07.18"]
[WhiteClock "0:00:05"]
[BlackClock "0:00:00"]
[Board "110"]

1. e4 {[%clk 0:03:00]}  e5 {[%clk 0:02:59]} 2. Nf3 {[%clk 0:03:00]}  Nc6 {[%clk 0:03:00]} 3. Bc4 {[%clk 0:03:00]}  Bc5 {[%clk 0:02:59]} 4. c3 {[%clk 0:03:00]}  Nf6 {[%clk 0:02:59]} 5. d3 {[%clk 0:03:01]}  d6 {[%clk 0:02:53]} 6. Bg5 {[%clk 0:02:59]}  h6 {[%clk 0:02:52]} 7. Bh4 {[%clk 0:02:59]}  a5 {[%clk 0:02:37]} 8. Bb5 {[%clk 0:02:57]}  Bd7 {[%clk 0:02:34]} 9. Nbd2 {[%clk 0:02:56]}  g5 {[%clk 0:02:28]} 10. Bg3 {[%clk 0:02:55]}  Nh5 {[%clk 0:02:11]} 11. a3 {[%clk 0:02:39]}  Qf6 {[%clk 0:01:51]} 12. b4 {[%clk 0:02:13]}  Bb6 {[%clk 0:01:51]} 13. Nc4 {[%clk 0:02:07]}  Ba7 {[%clk 0:01:41]} 14. O-O {[%clk 0:02:02]}  Nxg3 {[%clk 0:01:20]} 15. hxg3 {[%clk 0:02:02]}  h5 {[%clk 0:01:17]} 16. Bxc6 {[%clk 0:01:40]}  bxc6 {[%clk 0:01:16]} 17. d4 {[%clk 0:01:35]}  g4 {[%clk 0:00:28]} 18. dxe5 {[%clk 0:01:27]}  Qe6 {[%clk 0:00:28]} 19. Nfd2 {[%clk 0:01:13]}  dxe5 {[%clk 0:00:28]} 20. Ne3 {[%clk 0:01:08]}  h4 {[%clk 0:00:17]} 21. Qe2 {[%clk 0:00:51]}  hxg3 {[%clk 0:00:17]} 22. fxg3 {[%clk 0:00:51]}  Qh6 {[%clk 0:00:16]} 23. Kf2 {[%clk 0:00:48]}  O-O-O {[%clk 0:00:11]} 24. Nc4 {[%clk 0:00:41]}  Be6 {[%clk 0:00:08]} 25. Ke1 {[%clk 0:00:37]}  Bxc4 {[%clk 0:00:07]} 26. Nxc4 {[%clk 0:00:37]}  Qe6 {[%clk 0:00:07]} 27. Nxa5 {[%clk 0:00:21]}  c5 {[%clk 0:00:08]} 28. Qb5 {[%clk 0:00:18]}  Qb6 {[%clk 0:00:08]} 29. Qxb6 {[%clk 0:00:17]}  Bxb6 {[%clk 0:00:08]} 30. Nc4 {[%clk 0:00:17]}  cxb4 {[%clk 0:00:08]} 31. axb4 {[%clk 0:00:17]}  Kb7 {[%clk 0:00:04]} 32. Nxb6 {[%clk 0:00:16]}  Kxb6 {[%clk 0:00:04]} 33. Rd1 {[%clk 0:00:15]}  Rxd1+ {[%clk 0:00:03]} 34. Kxd1 {[%clk 0:00:15]}  Rd8+ {[%clk 0:00:04]} 35. Ke2 {[%clk 0:00:15]}  Rd7 {[%clk 0:00:04]} 36. Rf5 {[%clk 0:00:15]}  Re7 {[%clk 0:00:04]} 37. Kd3 {[%clk 0:00:16]}  c5 {[%clk 0:00:04]} 38. Kc4 {[%clk 0:00:16]}  cxb4 {[%clk 0:00:04]} 39. cxb4 {[%clk 0:00:16]}  Rc7+ {[%clk 0:00:04]} 40. Kd5 {[%clk 0:00:17]}  Kb5 {[%clk 0:00:04]} 41. Kxe5 {[%clk 0:00:14]}  Kxb4 {[%clk 0:00:05]} 42. Kf4 {[%clk 0:00:15]}  Kc3 {[%clk 0:00:05]} 43. Rd5 {[%clk 0:00:15]}  Re7 {[%clk 0:00:04]} 44. Rd1 {[%clk 0:00:14]}  Kc2 {[%clk 0:00:03]} 45. Rd5 {[%clk 0:00:13]}  Kc3 {[%clk 0:00:03]} 46. Re5 {[%clk 0:00:13]}  Rd7 {[%clk 0:00:04]} 47. Kxg4 {[%clk 0:00:13]}  Kd4 {[%clk 0:00:04]} 48. Kf4 {[%clk 0:00:12]}  Rd6 {[%clk 0:00:04]} 49. Rf5 {[%clk 0:00:12]}  Rd7 {[%clk 0:00:04]} 50. g4 {[%clk 0:00:13]}  Re7 {[%clk 0:00:04]} 51. Rd5+ {[%clk 0:00:11]}  Kc4 {[%clk 0:00:05]} 52. g5 {[%clk 0:00:11]}  Re6 {[%clk 0:00:04]} 53. g4 {[%clk 0:00:10]}  Re7 {[%clk 0:00:04]} 54. Kf5 {[%clk 0:00:11]}  Kc3 {[%clk 0:00:04]} 55. Rd8 {[%clk 0:00:10]}  Kc4 {[%clk 0:00:05]} 56. e5 {[%clk 0:00:11]}  Kc5 {[%clk 0:00:05]} 57. Kf6 {[%clk 0:00:11]}  Rb7 {[%clk 0:00:04]} 58. Rf8 {[%clk 0:00:10]}  Kd5 {[%clk 0:00:04]} 59. Rxf7 {[%clk 0:00:11]}  Rb6+ {[%clk 0:00:05]} 60. Kf5 {[%clk 0:00:10]}  Rb1 {[%clk 0:00:05]} 61. Rd7+ {[%clk 0:00:09]}  Kc6 {[%clk 0:00:05]} 62. Rd6+ {[%clk 0:00:09]}  Kc7 {[%clk 0:00:06]} 63. g6 {[%clk 0:00:10]}  Rf1+ {[%clk 0:00:06]} 64. Kg5 {[%clk 0:00:11]}  Re1 {[%clk 0:00:06]} 65. Kf6 {[%clk 0:00:09]}  Rf1+ {[%clk 0:00:06]} 66. Ke6 {[%clk 0:00:10]}  Rg1 {[%clk 0:00:05]} 67. Rd7+ {[%clk 0:00:09]}  Kc6 {[%clk 0:00:05]} 68. Rd8 {[%clk 0:00:08]}  Rxg4 {[%clk 0:00:05]} 69. Kf6 {[%clk 0:00:09]}  Kc7 {[%clk 0:00:05]} 70. Ra8 {[%clk 0:00:07]}  Rf4+ {[%clk 0:00:05]} 71. Ke6 {[%clk 0:00:07]}  Rg4 {[%clk 0:00:05]} 72. Kf7 {[%clk 0:00:07]}  Rf4+ {[%clk 0:00:05]} 73. Kg7 {[%clk 0:00:07]}  Kd7 {[%clk 0:00:05]} 74. Kg8 {[%clk 0:00:07]}  Ke7 {[%clk 0:00:05]} 75. g7 {[%clk 0:00:07]}  Rh4 {[%clk 0:00:05]} 76. Ra7+ {[%clk 0:00:07]}  Ke8 {[%clk 0:00:05]} 77. e6 {[%clk 0:00:08]}  Rh1 {[%clk 0:00:04]} 78. Rf7 {[%clk 0:00:07]}  Rh2 {[%clk 0:00:04]} 79. Rf6 {[%clk 0:00:07]}  Ke7 {[%clk 0:00:03]} 80. Rf7+ {[%clk 0:00:07]}  Ke8 {[%clk 0:00:03]} 81. Ra7 {[%clk 0:00:07]}  Rh1 {[%clk 0:00:03]} 82. e7 {[%clk 0:00:06]}  Rh2 {[%clk 0:00:03]} 83. Ra8+ {[%clk 0:00:05]}  Kxe7 {[%clk 0:00:03]} 84. Ra2 {[%clk 0:00:05]}  Rh1 {[%clk 0:00:02]} 85. Re2+ {[%clk 0:00:05]}  Kd7 {[%clk 0:00:01]} 86. Re5 {[%clk 0:00:05]}  Rh2 {[%clk 0:00:01]} 87. Kf7 {[%clk 0:00:04]}  Rf2+ {[%clk 0:00:00]} 88. Kg6 {[%clk 0:00:05]} 1-0


[Site "https://www.chess.com"]